bitfinex-derivatives/quotes_BTCF0:USTF0_20210708
["timestamp","ask_amount","ask_price","bid_price","bid_amount"]
[1625781924207,0.68076162,32701.0,32686.0,0.2929]
[1625781924506,0.68076162,32701.0,32684.0,0.00905168]
[1625781924507,0.72172632,32687.0,32684.0,0.00905168]
[1625781924655,0.95109632,32687.0,32681.0,0.24057544]
[1625781924956,0.95109632,32687.0,32685.0,0.00362079]
[1625781925107,0.95109632,32687.0,32682.0,0.00362081]
[1625781926534,0.24057544,32683.0,32682.0,0.00362081]
[1625781930435,0.95109632,32687.0,32682.0,0.00362081]
[1625781930588,0.95109632,32687.0,32686.0,0.24057544]
[1625781930961,0.95109632,32687.0,32686.0,0.24419594]
[1625781933738,0.95109632,32687.0,32686.0,0.0036205]
[1625781934339,0.95109632,32687.0,32682.0,0.00362079]
[1625781934489,0.95109632,32687.0,32686.0,0.00362081]
[1625781934790,0.95109632,32687.0,32682.0,0.00362071]
[1625781934941,0.95109632,32687.0,32682.0,0.71915759]
[1625781935090,0.95109632,32687.0,32686.0,0.00362067]
[1625781935391,0.95109632,32687.0,32683.0,0.00362067]
[1625781935543,0.95109632,32687.0,32686.0,0.00362065]
[1625781935843,0.95109632,32687.0,32683.0,0.00362062]
[1625781935992,0.72172632,32687.0,32683.0,0.00362062]
[1625781936141,0.72172632,32687.0,32686.0,0.00362064]
[1625781936443,0.72172632,32687.0,32684.0,0.00362071]
[1625781936594,0.72172632,32687.0,32686.0,0.00362071]
[1625781936893,0.72172632,32687.0,32683.0,0.00362071]
[1625781937193,0.72172632,32687.0,32683.0,0.54070699]
[1625781937492,0.48115088,32687.0,32683.0,0.54070699]
[1625781937644,0.48115088,32687.0,32684.0,0.5407562]
[1625781937944,0.48115088,32687.0,32685.0,0.00362062]
[1625781938697,0.48115088,32687.0,32686.0,0.24057544]
[1625781938995,0.48115088,32687.0,32686.0,0.24419621]
[1625781939601,0.48115088,32687.0,32686.0,0.24057544]
[1625781939897,0.48115088,32687.0,32686.0,0.24419629]
[1625781944782,0.48115088,32687.0,32686.0,0.24057544]
[1625781945080,0.48115088,32687.0,32686.0,0.24419617]
[1625781945905,0.48115088,32687.0,32686.0,0.24057544]
[1625781946204,0.48115088,32687.0,32686.0,0.24419616]
[1625781946959,0.82001088,32687.0,32686.0,0.24419616]
[1625781952664,1.06058632,32687.0,32686.0,0.00362072]
[1625781952814,2.26354035,32687.0,32686.0,0.00362072]
[1625781953116,3.29388658,32687.0,32684.0,0.00905253]
[1625781953266,3.29388658,32687.0,32683.0,0.00362131]
[1625781953267,2.23143742,32685.0,32683.0,0.00362131]
[1625781953416,2.23143742,32685.0,32679.0,0.00905349]
[1625781953568,2.23066591,32684.0,32679.0,0.00905349]
[1625781953718,2.23066591,32684.0,32679.0,0.0036217]
[1625781954019,2.23066591,32684.0,32680.0,0.00362181]
[1625781954169,1.02841201,32681.0,32680.0,0.00362181]
[1625781954319,2.22804528,32681.0,32680.0,0.00362181]
[1625781954469,2.22804528,32681.0,32675.0,0.0036219]
[1625781954621,3.42699665,32681.0,32675.0,0.0036219]
[1625781954774,0.72172632,32676.0,32674.0,0.00362203]
[1625781954921,0.96935632,32676.0,32674.0,0.00362203]
[1625781955072,0.96935632,32676.0,32673.0,0.0036221]
[1625781955371,0.96935632,32676.0,32675.0,0.0036221]
[1625781955672,0.96935632,32676.0,32674.0,0.00362208]
[1625781955974,0.96935632,32676.0,32675.0,0.00362208]
[1625781956424,0.96935632,32676.0,32672.0,0.00362208]
[1625781956725,0.96935632,32676.0,32675.0,0.00362208]
[1625781957025,0.96935632,32676.0,32673.0,0.00362208]
[1625781957175,0.96935632,32676.0,32675.0,0.00362223]
[1625781957328,2.16815551,32676.0,32675.0,0.00362223]
[1625781957475,2.16815551,32676.0,32672.0,0.00362225]
[1625781957775,0.51372697,32675.0,32671.0,0.00362225]
[1625781957924,1.65435997,32676.0,32671.0,0.00362225]
[1625781957925,1.48318006,32676.0,32671.0,0.00362225]
[1625781958074,1.48318006,32676.0,32673.0,0.00362218]
[1625781958376,0.96935632,32676.0,32672.0,0.54323998]
[1625781958529,0.96935632,32676.0,32674.0,0.00362202]
[1625781958826,0.96935632,32676.0,32673.0,0.00362206]
[1625781959126,0.96935632,32676.0,32672.0,0.78019332]
[1625781959127,0.96935632,32676.0,32675.0,0.0036221]
[1625781959425,0.96935632,32676.0,32674.0,0.00362208]
[1625781959579,0.96935632,32676.0,32675.0,0.00362216]
[1625781959878,0.96935632,32676.0,32672.0,0.00362218]
[1625781960026,0.51334883,32675.0,32672.0,0.00362218]
[1625781960176,0.51334883,32675.0,32671.0,0.00362224]
[1625781960477,0.51334883,32675.0,32673.0,0.00362228]
[1625781960626,0.51334883,32675.0,32672.0,0.00362228]
[1625781960777,0.24057544,32673.0,32672.0,0.00362228]
[1625781960927,0.24057544,32673.0,32669.0,0.00362228]
[1625781961903,0.24057544,32673.0,32671.0,1.25890996]
[1625781962203,0.24057544,32673.0,32671.0,0.53953284]
[1625781962353,0.24057544,32673.0,32672.0,0.00362213]
[1625781962802,0.24057544,32673.0,32671.0,0.54314224]
[1625781963103,0.24057544,32673.0,32672.0,0.00362207]
[1625781964155,0.24057544,32673.0,32671.0,0.00362205]
[1625781964380,0.24057544,32673.0,32672.0,0.00362214]
[1625781964681,0.24057544,32673.0,32671.0,0.00362212]
[1625781964907,0.24057544,32673.0,32672.0,0.0036221]
[1625781965730,0.24057544,32673.0,32671.0,0.54288945]
[1625781966030,0.24057544,32673.0,32672.0,0.00362221]
[1625781967310,0.24057544,32673.0,32672.0,0.36306934]
[1625781968210,0.24057544,32673.0,32672.0,0.54275439]
[1625781968435,0.24057544,32673.0,32672.0,0.35940372]
[1625781968585,0.24057544,32673.0,32672.0,0.36302585]
[1625781968735,0.24057544,32673.0,32672.0,0.90212921]
[1625781969187,0.24057544,32673.0,32672.0,0.36302585]
[1625781969335,0.24057544,32673.0,32672.0,0.00362213]
[1625781970015,0.24057544,32673.0,32671.0,0.00362234]
[1625781970162,0.54911544,32673.0,32672.0,0.00362231]
[1625781970464,0.54911544,32673.0,32670.0,0.00362225]
[1625781970763,0.54911544,32673.0,32670.0,0.9020335]
[1625781970911,0.24057544,32671.0,32670.0,0.9020335]
[1625781971063,0.24057544,32671.0,32670.0,1.25764452]
[1625781971364,0.24057544,32671.0,32670.0,1.26126664]
[1625781971513,0.24057544,32671.0,32670.0,1.27032188]
[1625781972263,0.24057544,32671.0,32670.0,2.34806116]
[1625781972416,0.24057544,32671.0,32670.0,1.27032188]
[1625781972566,0.85614567,32680.0,32670.0,1.27032188]
[1625781972717,0.34277773,32681.0,32670.0,3.84864258]
[1625781972868,0.51408094,32682.0,32680.0,0.48115088]
[1625781973015,0.24057544,32683.0,32680.0,0.83132088]
[1625781973167,0.24057544,32683.0,32681.0,0.00362133]
[1625781974217,0.24057544,32683.0,32681.0,0.01267487]
[1625781974969,0.24057544,32683.0,32681.0,0.9106044]
[1625781975269,0.24057544,32683.0,32682.0,0.35916449]
[1625781975421,0.24057544,32683.0,32682.0,0.36278549]
[1625781976171,0.24057544,32683.0,32682.0,0.003621]
[1625781976920,0.24057544,32683.0,32681.0,0.37192596]
[1625781977070,0.24057544,32683.0,32681.0,0.01267465]
[1625781977220,0.24057544,32683.0,32682.0,0.00362115]
[1625781977822,0.24057544,32683.0,32681.0,0.01267473]
[1625781977973,0.24057544,32683.0,32682.0,0.00362126]
[1625781978272,0.24057544,32683.0,32681.0,0.01267473]
[1625781978576,0.24057544,32683.0,32682.0,0.00362116]
[1625781980676,0.24057544,32683.0,32682.0,0.36334499]
[1625781981425,0.24057544,32683.0,32682.0,1.26374051]
[1625781981724,0.24057544,32683.0,32682.0,1.27279317]
[1625781983081,0.24057544,32683.0,32682.0,2.35296731]
[1625781984129,0.24057544,32683.0,32682.0,1.27279317]
[1625781984280,0.24057544,32683.0,32682.0,1.63295605]
[1625781984442,0.58552434,32683.0,32682.0,0.3728367]
[1625781984580,1.4472399,32683.0,32682.0,0.00362116]
[1625781985329,1.6711099,32683.0,32682.0,0.00362116]
[1625781985937,3.91006072,32683.0,32682.0,0.00362116]
[1625781986082,3.91006072,32683.0,32680.0,0.00905363]
[1625781986231,5.28718159,32683.0,32682.0,0.00362187]
[1625781986532,5.28718159,32683.0,32681.0,0.00362214]
[1625781986682,6.83523246,32683.0,32682.0,0.0036223]
[1625781986982,7.0758079,32683.0,32670.0,0.9097124]
[1625781987287,0.85992269,32672.0,32671.0,0.00362244]
[1625781987435,0.79135923,32672.0,32671.0,0.00362244]
[1625781987583,6.14205923,32672.0,32671.0,0.00362244]
[1625781987731,6.82970688,32672.0,32671.0,0.00362244]
[1625781987882,6.82970688,32672.0,32670.0,0.00362244]
[1625781988042,6.82970688,32672.0,32671.0,0.00362257]
[1625781988335,6.82970688,32672.0,32669.0,0.0036225]
[1625781988707,0.34379888,32671.0,32669.0,0.0036225]
[1625781989007,0.72172632,32670.0,32668.0,3.11e-06]
[1625781989158,0.72172632,32670.0,32667.0,0.72939613]
[1625781989309,1.40877184,32670.0,32667.0,0.00905664]
[1625781989459,1.40877184,32670.0,32668.0,0.00362266]
[1625781989908,1.40877184,32670.0,32667.0,0.0036227]
[1625781990212,1.40877184,32670.0,32666.0,0.00362276]
[1625781990520,0.68775019,32669.0,32668.0,0.00362278]
[1625781990810,0.68775019,32669.0,32667.0,0.00362278]
[1625781990964,0.24057544,32668.0,32663.0,0.72004675]
[1625781991264,0.24057544,32668.0,32664.0,0.00362287]
[1625781991712,0.92859047,32668.0,32664.0,0.00362287]
[1625781992010,0.68823628,32667.0,32663.0,0.00362311]
[1625781992313,0.92844282,32668.0,32662.0,0.01268004]
[1625781992610,0.92844282,32668.0,32664.0,0.00362305]
[1625781992911,0.24057544,32665.0,32663.0,0.00362303]
[1625781993062,0.54977544,32665.0,32663.0,0.00362303]
[1625781993211,0.54977544,32665.0,32662.0,0.00905699]
[1625781993362,0.54977544,32665.0,32664.0,0.0036231]
[1625781993665,0.54977544,32665.0,32663.0,0.00362307]
[1625781993962,0.54977544,32665.0,32664.0,0.0036231]
[1625781994413,0.54977544,32665.0,32663.0,0.0036231]
[1625781994713,0.54977544,32665.0,32662.0,0.0036231]
[1625781995014,0.24057544,32663.0,32661.0,0.24057544]
[1625781995464,0.24057544,32663.0,32662.0,0.00362327]
[1625782000345,0.41433685,32663.0,32661.0,0.00362347]
[1625782000494,0.41433685,32663.0,32662.0,0.00362343]
[1625782000795,0.41433685,32663.0,32659.0,0.00362339]
[1625782000944,0.24057544,32660.0,32659.0,0.00362339]
[1625782001997,0.24057544,32660.0,32658.0,0.24057544]
[1625782002298,5.1757,32659.0,32658.0,0.24057544]
[1625782002600,5.1757,32659.0,32658.0,0.24419886]
[1625782007631,5.1757,32659.0,32658.0,0.00362342]
[1625782007931,5.1757,32659.0,32655.0,0.00362371]
[1625782008531,0.17391175,32658.0,32655.0,0.00362371]
[1625782008682,0.17391175,32658.0,32652.0,0.00362395]
[1625782008683,0.1737409,32657.0,32652.0,0.00362395]
[1625782008981,0.48115088,32653.0,32652.0,0.00362395]
[1625782009281,0.48115088,32653.0,32645.0,1.25725118]
[1625782009433,0.48115088,32653.0,32647.0,0.17965297]
[1625782009582,1.17200693,32653.0,32645.0,1.07791783]
[1625782009731,1.17200693,32653.0,32644.0,0.17966863]
[1625782009732,0.17284352,32652.0,32644.0,0.17966863]
[1625782009882,1.17200693,32653.0,32644.0,0.17966863]
[1625782009883,0.6539189,32653.0,32648.0,0.00362496]
[1625782010033,0.6539189,32653.0,32645.0,0.00362469]
[1625782010183,0.48115088,32653.0,32648.0,0.17955361]
[1625782010633,0.48115088,32653.0,32647.0,0.17955329]
[1625782010782,0.48115088,32653.0,32649.0,0.00362474]
[1625782010934,0.24057544,32652.0,32649.0,0.00362474]
[1625782011083,0.24057544,32652.0,32648.0,0.24420018]
[1625782011234,0.24057544,32652.0,32650.0,0.00362484]
[1625782011534,0.24057544,32652.0,32649.0,0.00362484]
[1625782011834,0.24057544,32652.0,32651.0,0.00362482]
[1625782012058,0.24057544,32652.0,32650.0,0.00362479]
[1625782012284,0.24057544,32652.0,32648.0,0.24057544]
[1625782012285,0.24057544,32652.0,32651.0,0.00362477]
[1625782012584,0.24057544,32652.0,32649.0,0.00362475]
[1625782013337,0.24057544,32652.0,32650.0,0.17953362]
[1625782013637,0.24057544,32652.0,32651.0,0.00362452]
[1625782013937,0.24057544,32652.0,32649.0,0.00362449]
[1625782014239,0.24057544,32652.0,32651.0,0.00362449]
[1625782014387,0.24057544,32652.0,32650.0,0.00362451]
[1625782014687,0.24057544,32652.0,32649.0,0.00362451]
[1625782016340,0.24057544,32652.0,32649.0,0.18306126]
[1625782016793,0.24057544,32652.0,32650.0,0.18302592]
[1625782016939,0.24057544,32652.0,32651.0,0.24057544]
[1625782017092,0.24057544,32652.0,32651.0,0.96169343]
[1625782017241,0.24057544,32652.0,32651.0,2.03790724]
[1625782017390,0.24057544,32660.0,32651.0,2.03790724]
[1625782017543,0.24057544,32660.0,32651.0,3.29343177]
[1625782017693,0.24057544,32660.0,32657.0,0.17935498]
[1625782017841,0.24057544,32660.0,32657.0,0.46790498]
[1625782018143,0.24057544,32660.0,32658.0,0.00362318]
[1625782018293,0.24057544,32664.0,32658.0,0.00362318]
[1625782018442,1.09673806,32670.0,32658.0,0.72089404]
[1625782018747,0.9235,32670.0,32662.0,0.17931429]
[1625782018892,0.17334998,32673.0,32662.0,0.17931429]
[1625782019044,0.93345581,32674.0,32672.0,0.24057544]
[1625782019200,0.93345581,32674.0,32672.0,0.58588544]
[1625782019351,0.69332646,32673.0,32672.0,0.58588544]
[1625782019498,1.73300504,32673.0,32672.0,0.58588544]
[1625782019795,1.73300504,32673.0,32672.0,0.58950854]
[1625782019944,0.69332646,32673.0,32672.0,0.58950854]
[1625782020247,0.93419123,32674.0,32672.0,0.58950854]
[1625782020548,0.17350108,32673.0,32672.0,0.58950854]
[1625782020699,0.17350108,32673.0,32672.0,0.58588544]
[1625782020993,0.17350108,32673.0,32672.0,0.58950841]
[1625782021148,0.41409851,32674.0,32672.0,0.58950841]
[1625782021444,0.41409851,32674.0,32673.0,0.00362293]
[1625782021746,0.24057544,32674.0,32673.0,0.00362293]
[1625782022495,0.24057544,32677.0,32673.0,0.00362293]
[1625782022795,0.24057544,32677.0,32673.0,3.78932293]
[1625782023097,0.24057544,32681.0,32676.0,0.48115088]
[1625782023397,0.41450716,32681.0,32676.0,0.48115088]
[1625782023546,0.41450716,32681.0,32677.0,0.00362208]
[1625782023849,0.24057544,32681.0,32677.0,0.00362208]
[1625782025053,0.17391357,32683.0,32680.0,0.24057544]
[1625782025201,0.69471446,32685.0,32680.0,0.53666544]
[1625782025353,1.21656096,32687.0,32680.0,0.53666544]
[1625782025354,0.69398893,32688.0,32680.0,0.53666544]
[1625782025501,0.69398893,32688.0,32681.0,0.00362183]
[1625782025653,0.69388599,32689.0,32681.0,0.00362183]
[1625782025803,0.93439762,32691.0,32681.0,0.00362183]
[1625782026253,0.24057544,32691.0,32681.0,0.00362183]
[1625782027007,0.24057544,32691.0,32690.0,0.48115088]
[1625782027161,0.24057544,32691.0,32690.0,0.77824088]
[1625782027305,0.24057544,32691.0,32690.0,0.78186166]
[1625782027455,0.69384604,32694.0,32690.0,0.78186166]
[1625782027456,0.08695354,32694.0,32690.0,0.78186166]
[1625782027755,0.08694192,32695.0,32690.0,0.78186166]
[1625782027904,0.08694192,32695.0,32691.0,0.00362072]
[1625782028055,0.08704641,32696.0,32691.0,0.00362072]
[1625782028205,0.93573051,32698.0,32691.0,0.00362072]
[1625782028206,0.08721934,32697.0,32691.0,0.00362072]
[1625782028505,0.32782092,32698.0,32691.0,0.00362072]
[1625782028660,0.24057544,32698.0,32691.0,0.00362072]
[1625782029108,0.24057544,32698.0,32697.0,0.48115088]
[1625782029256,0.24057544,32698.0,32697.0,0.72830088]
[1625782030158,0.3279143,32698.0,32697.0,0.72830088]
[1625782030307,0.24057544,32698.0,32697.0,0.72830088]
[1625782030534,0.32791629,32698.0,32697.0,0.72830088]
[1625782031883,0.32791629,32698.0,32697.0,0.48115088]
[1625782032035,0.24057544,32698.0,32697.0,0.48115088]
[1625782032785,3.20203928,32698.0,32697.0,0.48115088]
[1625782032936,1.98265398,32698.0,32697.0,0.48115088]
[1625782033686,3.15186951,32698.0,32697.0,0.48115088]
[1625782034886,3.38369951,32698.0,32697.0,0.48115088]
[1625782035788,4.77767168,32698.0,32697.0,0.48115088]
[1625782037214,3.38369951,32698.0,32697.0,0.48115088]
[1625782038566,4.778413,32698.0,32690.0,0.48115088]
[1625782038714,4.778413,32698.0,32678.0,0.14638623]
[1625782038870,0.08729204,32691.0,32676.0,0.0893808]
[1625782039017,0.08728752,32690.0,32676.0,0.0893808]
[1625782039165,0.24057544,32683.0,32681.0,0.24057544]
[1625782039317,4.4325,32682.0,32681.0,0.24057544]
[1625782044123,4.51976479,32682.0,32681.0,0.24057544]
[1625782044423,5.12890962,32682.0,32681.0,0.24057544]
[1625782045175,5.12890962,32682.0,32678.0,0.24057544]
[1625782045323,0.08719239,32680.0,32678.0,0.24057544]
[1625782045623,0.08719239,32680.0,32671.0,0.24057544]
[1625782045624,0.69608385,32680.0,32671.0,0.24057544]
[1625782045925,0.08718725,32677.0,32671.0,0.24057544]
[1625782046224,0.08718725,32677.0,32672.0,0.0036229]
[1625782047274,0.48115088,32673.0,32672.0,0.0036229]
[1625782047423,0.75906088,32673.0,32672.0,0.0036229]
[1625782050877,0.84624093,32673.0,32672.0,0.0036229]
[1625782051628,0.75906088,32673.0,32672.0,0.0036229]
[1625782052604,0.84622054,32673.0,32672.0,0.0036229]
[1625782054635,0.75906088,32673.0,32672.0,0.0036229]
[1625782054934,0.84611799,32673.0,32672.0,0.0036229]
[1625782055236,0.75906088,32673.0,32672.0,0.0036229]
[1625782055687,1.4530627,32673.0,32672.0,0.0036229]
[1625782055987,0.75906088,32673.0,32672.0,0.0036229]
[1625782056437,0.75906088,32673.0,32668.0,0.24057544]
[1625782056587,0.08690798,32671.0,32668.0,0.24057544]
[1625782056737,0.08690798,32671.0,32669.0,0.00362405]
[1625782056888,0.69416471,32670.0,32669.0,0.00362405]
[1625782057036,0.79162503,32671.0,32664.0,0.00362428]
[1625782057189,1.21594731,32672.0,32664.0,0.00362428]
[1625782057337,0.72172632,32665.0,32661.0,0.00362428]
[1625782057488,0.99962632,32665.0,32661.0,0.00362428]
[1625782057636,0.99962632,32665.0,32660.0,0.24057544]
[1625782057937,0.99962632,32665.0,32662.0,0.00362434]
[1625782058089,0.99962632,32665.0,32661.0,0.0036244]
[1625782058386,3.8159,32662.0,32661.0,0.0036244]
[1625782061465,3.8159,32662.0,32654.0,0.24057544]
[1625782061614,3.8159,32662.0,32649.0,0.08951802]
[1625782061915,3.8159,32662.0,32655.0,0.0036249]
[1625782061916,0.08675705,32661.0,32655.0,0.0036249]
[1625782062065,0.08675705,32661.0,32650.0,0.0036249]
[1625782062366,0.08675705,32661.0,32649.0,0.00362494]
[1625782062516,0.08667243,32660.0,32649.0,0.00362494]
[1625782062817,0.08668908,32661.0,32649.0,0.00362494]
[1625782062966,0.08668908,32661.0,32648.0,0.00362488]
[1625782063118,3.8159,32662.0,32648.0,0.09313116]
[1625782063272,0.24057544,32651.0,32650.0,0.00362482]
[1625782063421,0.47860544,32651.0,32649.0,0.00362489]
[1625782064020,0.47860544,32651.0,32648.0,0.00362498]
[1625782064319,0.47860544,32651.0,32650.0,0.00362498]
[1625782064471,0.47860544,32651.0,32649.0,0.00362496]
[1625782064771,0.47860544,32651.0,32648.0,0.00362492]
[1625782065070,0.47860544,32651.0,32650.0,0.00362494]
[1625782065371,0.71918088,32651.0,32649.0,0.00362494]
[1625782065520,0.71918088,32651.0,32650.0,0.00362494]
[1625782065822,0.71918088,32651.0,32648.0,0.00362494]
[1625782069577,0.71918088,32651.0,32648.0,0.09310187]
[1625782069723,0.71918088,32651.0,32649.0,0.08947172]
[1625782070023,0.71918088,32651.0,32650.0,0.08949563]
[1625782070180,0.71918088,32651.0,32650.0,0.09312006]
[1625782070325,0.71918088,32651.0,32650.0,0.00362443]
[1625782070477,0.71918088,32651.0,32650.0,0.09312061]
[1625782071374,0.71918088,32651.0,32650.0,0.33369605]
[1625782071527,0.71918088,32651.0,32650.0,0.24419987]
[1625782072277,0.71918088,32651.0,32650.0,0.33371943]
[1625782072577,0.71918088,32651.0,32650.0,0.24057544]
[1625782072803,0.71918088,32651.0,32650.0,0.24419986]
[1625782074303,0.71918088,32651.0,32650.0,0.33373548]
[1625782074603,0.71918088,32651.0,32650.0,0.24419986]
[1625782074755,0.71918088,32651.0,32650.0,0.00362442]
[1625782075503,0.71918088,32651.0,32646.0,0.00362533]
[1625782075654,4.6306,32647.0,32646.0,0.00362533]
[1625782076253,4.6306,32647.0,32641.0,0.00362546]
[1625782077308,0.48115088,32642.0,32641.0,0.00362546]
[1625782077459,0.80026088,32642.0,32641.0,0.00362546]
[1625782079410,1.04083632,32642.0,32641.0,0.00362546]
[1625782079561,1.04083632,32642.0,32636.0,0.00362596]
[1625782079860,1.04083632,32642.0,32641.0,0.00362587]
[1625782080160,1.04083632,32642.0,32637.0,0.00362597]
[1625782080314,1.04083632,32642.0,32641.0,0.00362602]
[1625782080611,1.04083632,32642.0,32636.0,0.00362611]
[1625782080912,1.04083632,32642.0,32641.0,0.00362608]
[1625782081215,1.04083632,32642.0,32637.0,0.00362608]
[1625782081362,1.04083632,32642.0,32641.0,0.00362603]
[1625782081664,1.04083632,32642.0,32639.0,0.00362597]
[1625782082263,0.80026088,32642.0,32639.0,0.00362597]
[1625782083165,0.55968544,32642.0,32639.0,0.00362597]
[1625782083316,0.24057544,32642.0,32639.0,0.00362597]
[1625782083464,0.24057544,32642.0,32641.0,0.24057544]
[1625782083780,0.24057544,32642.0,32641.0,0.24420101]
[1625782099692,0.24057544,32642.0,32641.0,0.00362557]
[1625782100279,0.24057544,32642.0,32640.0,0.00362598]
[1625782100430,0.24057544,32642.0,32641.0,0.003626]
[1625782100729,0.24057544,32642.0,32639.0,0.003626]
[1625782101043,0.24057544,32642.0,32641.0,0.003626]
[1625782101347,0.24057544,32642.0,32640.0,0.00362608]
[1625782101488,0.24057544,32641.0,32635.0,0.33941917]
[1625782101631,0.24057544,32641.0,32635.0,0.24964038]
[1625782101781,0.24057544,32641.0,32636.0,0.00362599]
[1625782103510,0.24057544,32637.0,32636.0,0.00362599]
[1625782103659,0.24057544,32637.0,32636.0,0.09349436]
[1625782104409,0.24057544,32637.0,32636.0,0.00362599]
[1625782105612,0.24057544,32637.0,32636.0,0.09353105]
[1625782105914,0.24057544,32637.0,32636.0,0.00362599]
[1625782107565,0.24057544,32637.0,32636.0,0.09357065]
[1625782107865,0.24057544,32637.0,32636.0,0.00362599]
[1625782110422,0.24057544,32637.0,32635.0,0.00362653]
[1625782110722,0.24057544,32637.0,32634.0,0.00362643]
[1625782111022,0.24057544,32637.0,32636.0,0.00362648]
[1625782111323,0.24057544,32637.0,32634.0,0.0036265]
[1625782111625,0.24057544,32635.0,32634.0,0.08999752]
[1625782111777,0.47058544,32635.0,32633.0,0.44998904]
[1625782112074,0.47058544,32635.0,32634.0,0.00362654]
[1625782112226,0.47058544,32635.0,32634.0,0.09362368]
[1625782112526,0.47058544,32635.0,32634.0,0.00362654]
[1625782112976,0.47058544,32635.0,32633.0,0.00362658]
[1625782113125,0.47058544,32635.0,32634.0,0.0036266]
[1625782113428,0.47058544,32635.0,32633.0,0.00362662]
[1625782113578,0.71116088,32635.0,32633.0,0.00362662]
[1625782113877,0.79824793,32635.0,32633.0,0.00362662]
[1625782115530,0.79824793,32635.0,32633.0,0.09367547]
[1625782115830,1.14651934,32635.0,32634.0,0.00362669]
[1625782115979,1.05943229,32635.0,32634.0,0.00362669]
[1625782116430,1.05943229,32635.0,32633.0,0.00362695]
[1625782116582,0.79837029,32635.0,32634.0,0.00362699]
[1625782116732,1.14668656,32635.0,32634.0,0.00362699]
[1625782116880,1.14668656,32635.0,32633.0,0.00362699]
[1625782117180,1.14668656,32635.0,32634.0,0.00362693]
[1625782117560,1.23346977,32635.0,32634.0,0.00362693]
[1625782117709,1.93003456,32635.0,32633.0,0.003627]
[1625782118007,0.43564073,32634.0,32632.0,0.09007061]
[1625782118158,0.08723262,32634.0,32632.0,0.09007061]
[1625782118458,0.08723262,32634.0,32633.0,0.00362688]
[1625782119514,0.3484977,32634.0,32633.0,0.00362688]
[1625782119665,0.87115717,32634.0,32633.0,0.00362688]
[1625782120116,0.3484977,32634.0,32632.0,0.00362692]
[1625782120264,0.41751083,32634.0,32632.0,0.09369488]
[1625782120714,0.41751083,32634.0,32633.0,0.0036269]
[1625782121616,0.76616731,32634.0,32633.0,0.0036269]
[1625782121991,0.67888648,32634.0,32633.0,0.0036269]
[1625782122593,1.20168241,32634.0,32633.0,0.0036269]
[1625782122746,0.67888648,32634.0,32633.0,0.0036269]
[1625782123119,0.67888648,32634.0,32632.0,0.0036269]
[1625782123268,0.67888648,32634.0,32633.0,0.00362694]
[1625782123568,0.67888648,32634.0,32632.0,0.00362692]
[1625782123717,0.67888648,32634.0,32632.0,0.09371039]
[1625782123867,0.67888648,32634.0,32633.0,0.00362692]
[1625782124319,0.76616253,32634.0,32633.0,0.00362692]
[1625782125067,0.67888648,32634.0,32633.0,0.00362692]
[1625782125593,0.76615948,32634.0,32633.0,0.00362692]
[1625782126044,0.67888648,32634.0,32633.0,0.00362692]
[1625782126569,0.67888648,32634.0,32631.0,0.4503675]
[1625782126722,0.67888648,32634.0,32633.0,0.00362696]
[1625782127020,1.20156659,32634.0,32633.0,0.00725392]
[1625782127320,1.20156659,32634.0,32633.0,0.00362696]
[1625782127470,0.85291011,32634.0,32633.0,0.00362696]
[1625782127621,0.85291011,32634.0,32633.0,0.00725394]
[1625782128371,1.20144102,32634.0,32633.0,0.00725394]
[1625782128671,0.67876091,32634.0,32633.0,0.00725394]
[1625782129121,1.20159771,32634.0,32633.0,0.00725394]
[1625782129572,0.8530668,32634.0,32633.0,0.00725394]
[1625782129872,1.20174907,32634.0,32633.0,0.00725394]
[1625782130022,0.8530668,32634.0,32633.0,0.00725394]
[1625782131375,1.55060234,32634.0,32633.0,0.00725394]
[1625782132650,1.55060234,32634.0,32633.0,0.09741799]
[1625782132950,1.55060234,32634.0,32633.0,0.00362696]
[1625782133251,1.55060234,32634.0,32633.0,0.09741793]
[1625782133400,1.55060234,32634.0,32633.0,0.00725396]
[1625782133625,1.55060234,32634.0,32633.0,0.09746458]
[1625782133626,2.5980984,32634.0,32633.0,0.09746458]
[1625782136179,1.55060234,32634.0,32633.0,0.09746458]
[1625782136331,2.59804589,32634.0,32633.0,0.09746458]
[1625782136630,1.55060234,32634.0,32633.0,0.09746458]
[1625782137681,1.55060234,32634.0,32633.0,0.45835249]
[1625782137682,2.59796358,32634.0,32633.0,0.45835249]
[1625782138131,2.59796358,32634.0,32633.0,0.09746458]
[1625782138883,2.59796358,32634.0,32633.0,0.00725396]
[1625782139033,2.59796358,32634.0,32633.0,0.09747633]
[1625782139333,2.59796358,32634.0,32633.0,0.00725396]
[1625782139784,2.59796358,32634.0,32633.0,0.09747661]
[1625782140088,2.59796358,32634.0,32633.0,0.00725396]
[1625782140236,3.82072681,32634.0,32633.0,0.00725396]
[1625782140989,2.59796358,32634.0,32633.0,0.00725396]
[1625782141438,3.82098934,32634.0,32633.0,0.00725396]
[1625782141590,3.82098934,32634.0,32631.0,0.45111791]
[1625782141738,0.24057544,32632.0,32631.0,0.45111791]
[1625782142189,0.24057544,32632.0,32631.0,0.09385213]
[1625782142490,3.73297822,32632.0,32631.0,0.00362724]
[1625782142788,3.73297822,32632.0,32627.0,0.7308824]
[1625782142939,4.23297822,32632.0,32628.0,0.09023098]
[1625782143088,4.23297822,32632.0,32631.0,0.00362757]
[1625782143238,3.73297822,32632.0,32631.0,0.00362757]
[1625782143392,1.80987001,32632.0,32629.0,0.00362766]
[1625782143539,1.80987001,32632.0,32624.0,0.09023473]
[1625782143688,0.72172632,32625.0,32624.0,0.09023473]
[1625782143840,4.42702344,32625.0,32622.0,0.00907034]
[1625782143990,4.87255539,32623.0,32622.0,0.00907034]
[1625782144439,10.16873079,32623.0,32613.0,0.72184429]
[1625782144591,10.16873079,32623.0,32611.0,0.09024167]
[1625782144891,0.52114849,32612.0,32611.0,0.45120899]
[1625782145039,1.52602174,32612.0,32611.0,0.09024167]
[1625782145191,1.52602174,32612.0,32611.0,0.09387069]
[1625782145491,1.52602174,32612.0,32611.0,0.00362902]
[1625782145492,0.31013,32612.0,32611.0,0.00362902]
[1625782145791,3.28651226,32612.0,32611.0,0.00362902]
[1625782146093,6.38577635,32612.0,32611.0,0.00362902]
[1625782146241,6.38577635,32612.0,32609.0,0.00363017]
[1625782146391,5.88577635,32612.0,32609.0,0.00363017]
[1625782146542,1.03185632,32612.0,32611.0,0.00363029]
[1625782146843,1.03185632,32612.0,32603.0,0.00907573]
[1625782146844,5.88141361,32612.0,32610.0,0.00363036]
[1625782146992,4.84982299,32611.0,32603.0,0.09019809]
[1625782147294,0.51954711,32604.0,32602.0,0.09019887]
[1625782147444,0.08658289,32603.0,32601.0,0.00907622]
[1625782147744,0.8083158,32602.0,32596.0,1.26110073]
[1625782147892,0.8083158,32602.0,32601.0,0.00363074]
[1625782148044,0.8083158,32602.0,32591.0,1.44125797]
[1625782148045,0.51790974,32598.0,32591.0,0.54058645]
[1625782148195,0.51781923,32597.0,32590.0,1.554285]
[1625782148347,4.2975,32591.0,32590.0,1.26306316]
[1625782148499,4.2975,32591.0,32590.0,0.00907816]
[1625782148644,4.81375282,32591.0,32588.0,1.26150341]
[1625782148795,10.11511419,32591.0,32578.0,0.76211477]